Cogmind - Beta 10.2 @@@ ROGUE MODE // 2021.12.13 @ 20:27:00 Player: Dunwell Result: Destroyed by S-10 Pest with Light Assault Rifle Performance ------------- Evolutions (0) 0 Regions Visited (1) 200 Robots Destroyed (9) 45 Value Destroyed (197) 197 Prototype IDs (0) 0 Alien Tech Used (0) 0 Bonus (0) 0 TOTAL SCORE: 442 Bonus ------- None Cogmind --------- Core Integrity 0/250 Matter 275/300 Energy 41/100 System Corruption 0% Temperature Cool (21) Movement Core (100) Ox1 Location -10/Materials Parts ------- > --- POWER (1) -------- (None) > --- PROPULSION (2) --- (None) > --- UTILITY (2) ------ Heat Sink Small Storage Unit > --- WEAPON (2) ------- (None) > --- INVENTORY (6) ---- Aluminum Leg Small Storage Unit Peak State ------------ > --- POWER ------------ Light Ion Engine > --- PROPULSION ------- Hover Unit Hover Unit > --- UTILITY ---------- Heat Sink Small Storage Unit > --- WEAPON ----------- Assault Rifle Grenade Launcher > --- INVENTORY -------- Aluminum Leg Aluminum Leg Wheel Wheel [Rating: 7] Favorites ----------- Power Light Ion Engine Engine Light Ion Engine Propulsion Hover Unit Leg Aluminum Leg Hover Unit Hover Unit Flight Unit Flight Unit Utility Small Storage Unit Device Heat Sink Storage Small Storage Unit Weapon Assault Rifle Energy Cannon Beam Cannon Ballistic Gun Assault Rifle Launcher Grenade Launcher Build | -11 -10 ------- Run | Scr Mat Slots Evolved . | . . Power . | . . Propulsion . | . . Utility . | . . Weapon . | . . Parts Attached 16 | 5 11 Power 2 | 1 1 Engine 2 | 1 1 Core . | . . Reactor . | . . Propulsion 6 | 2 4 Treads . | . . Leg 2 | 2 . Wheel . | . . Hover 3 | . 3 Flight 1 | . 1 Utility 5 | 1 4 Device 3 | 1 2 Storage 2 | . 2 Processor . | . . Hackware . | . . Protection . | . . Artifact . | . . Weapon 3 | 1 2 Energy Gun . | . . Energy Cannon 1 | . 1 Ballistic Gun 1 | 1 . Ballistic Cannon . | . . Launcher 1 | . 1 Special Weapon . | . . Impact Weapon . | . . Slashing Weapon . | . . Piercing Weapon . | . . Special Melee Weapon . | . . Unidentified Prototypes . | . . Parts Lost 10 | . 10 Power 2 | . 2 Propulsion 4 | . 4 Utility 1 | . 1 Weapon 3 | . 3 Highest Loss Streak 9 | . 9 Average Slot Usage (%) 93 | . 93 Engine 12 | . 12 Leg 1 | . 1 Hover 24 | . 24 Device 14 | . 14 Storage 13 | . 13 Energy Cannon 2 | . 2 Ballistic Gun 13 | . 13 Launcher 11 | . 11 Naked Turns . | . . Heaviest Build 13 | 6 13 Greatest Support 20 | 20 20 Greatest Overweight (x) 4 | . 4 Average Overweight (x) . | . . Largest Inventory Capacity 6 | 4 6 Average Capacity 5 | 4 5 Most Carried 6 | 4 6 Average Carried 4 | 1 5 Final Capacity 6 | 4 6 Final Carried 2 | 2 2 Class Distribution -------------------- 100% | Mutant Dominant Class ---------------- Mutant | -10/Materials Resources | -11 -10 ----------- Run | Scr Mat Matter Collected 349 | 271 78 Remotely . | . . Salvage Created 243 | 47 196 Parts 14 | 1 13 Haulers Intercepted . | . . Recyclers Shooed . | . . Parts Field Recycled . | . . Retrieved Matter . | . . Parts Self-Destructed . | . . Prevented . | . . Kills | -11 -10 ------- Run | Scr Mat Combat Hostiles Destroyed 3 | 1 2 Guns 1 | 1 . Cannons 1 | . 1 AOE 1 | . 1 Classes Destroyed 5 | 1 4 Builder 1 | . 1 Recycler 3 | . 3 Operator 1 | . 1 Watcher 1 | . 1 Grunt 3 | 1 2 Best Kill Streak 5 | 1 5 Combat Bots Only 1 | 1 1 Max Kills in Single Turn 5 | 1 5 Gunslinging . | . . Exploded 1 | . 1 Melee . | . . Uniques/NPCs Destroyed . | . . Combat | -11 -10 -------- Run | Scr Mat Damage Taken 799 | 58 741 Core 254 | . 254 Absorbed by Shields . | . . Core Remaining (%) 100 | 100 . Volleys Fired 15 | 7 8 Largest 2 | 1 2 Hottest 80 | 20 80 Shots Fired 16 | 7 9 Gun 9 | 7 2 Cannon 4 | . 4 Launcher 3 | . 3 Special . | . . Kinetic 9 | 7 2 Thermal 4 | . 4 Explosive 3 | . 3 Electromagnetic . | . . Robot Hit Streak 3 | 2 3 Robot Miss Streak 2 | 2 1 Penetration Max . | . . Secondary Targets . | . . Shots Hit Robots 8 | 4 4 Core Hits 12 | 2 10 Critical Hits . | . . Critical Kills . | . . Critical Parts Destroyed . | . . Melee Attacks . | . . Impact . | . . Slashing . | . . Piercing . | . . Sneak Attacks . | . . Combat Hostiles . | . . Follow-up Attacks . | . . Damage Inflicted 1021 | 53 968 Guns 83 | 53 30 Cannons 70 | . 70 Explosions 868 | . 868 Melee . | . . Ramming . | . . Kinetic 83 | 53 30 Thermal 70 | . 70 Explosive 868 | . 868 Electromagnetic . | . . Impact . | . . Slashing . | . . Piercing . | . . Highest Corruption . | . . Average Corruption . | . . Corruption Purged . | . . Overload Shots . | . . Overflow Damage 92 | . 92 Projectiles . | . . Explosions 92 | . 92 Melee . | . . Knockbacks . | . . Impact . | . . Kinetic . | . . Secondary . | . . Self-Inflicted Damage 87 | . 87 Shots 2 | . 2 Rammed . | . . Targets Rammed . | . . Kicked . | . . Crushed . | . . Highest Temperature 97 | . 97 Average Temperature 37 | . 37 Received Heat Transfer 279 | 30 249 Siege Activations . | . . Robots Corrupted . | . . Combat Hostiles . | . . Parts Fried . | . . Impact Corruptions . | . . Robots Melted . | . . Combat Hostiles . | . . Parts Melted . | . . Heat Transferred 148 | . 148 Parts Sabotaged . | . . Parts Stolen . | . . Parts Stripped . | . . Power Chain Reactions . | . . Missiles Intercepted . | . . Alert | -11 -10 ------- Run | Scr Mat Peak Influence 220 | 20 220 Initial 13 | . 13 Average 57 | 7 80 Maximum Alert Level 1 | . 1 Low Security (%) 97 | 100 96 Level 1 2 | . 3 Level 2 . | . . Level 3 . | . . Level 4 . | . . Level 5 . | . . High Security . | . . Max Security . | . . Squads Dispatched 4 | . 4 Investigation . | . . Extermination . | . . Reinforcement 4 | . 4 Assault . | . . Garrison . | . . Intercept . | . . Construction Impeded . | . . Haulers Reinforced . | . . Stealth | -11 -10 --------- Run | Scr Mat Distress Signals 2 | . 2 Communications Jammed . | . . Distress Signals . | . . Times Spotted 23 | 1 22 Peak Tracking Total 11 | 1 11 Tactical Retreats 1 | . 1 Traps | -11 -10 ------- Run | Scr Mat Traps Triggered . | . . Indirectly . | . . Trap Hack Attempts . | . . Triggered . | . . Disarmed . | . . Reprogrammed . | . . Reused . | . . Traps Extracted . | . . Installed . | . . Triggered . | . . Machines | -11 -10 ---------- Run | Scr Mat Machines Disabled 4 | . 4 Max in Single Turn 3 | . 3 Machines Sabotaged . | . . Garrisons Compromised . | . . Overloaded Fab Kills . | . . Fab Network Shutdowns . | . . Hacking | -11 -10 --------- Run | Scr Mat Machines Accessed . | . . Terminals . | . . Fabricators . | . . Repair Stations . | . . Recycling Units . | . . Scanalyzers . | . . Garrison Access . | . . Total Hacks . | . . Successful . | . . Failed . | . . Catastrophic . | . . Database Lockouts . | . . Manual . | . . Terminals . | . . Fabricators . | . . Repair Stations . | . . Recycling Units . | . . Scanalyzers . | . . Garrison Access . | . . Terminal Hacks . | . . Fabricator Hacks . | . . Repair Station Hacks . | . . Recycling Unit Hacks . | . . Scanalyzer . | . . Garrison Access Hacks . | . . Unauthorized Hacks . | . . Terminals . | . . Fabricators . | . . Repair Stations . | . . Recycling Units . | . . Scanalyzers . | . . Garrison Access . | . . Data Cores Recovered . | . . Used . | . . Hacking Detections . | . . Full Trace Events . | . . Feedback Events . | . . Feedback Blocked . | . . Robot Schematics Acquired . | . . Robots Built . | . . Matter . | . . Time . | . . Total Robot Build Rating . | . . Part Schematics Acquired . | . . Parts Built . | . . Matter . | . . Time . | . . Total Part Build Rating . | . . Parts Repaired . | . . Time . | . . Parts Recycled . | . . Recycled Matter . | . . Retrieved Matter . | . . Retrieved Components . | . . Parts Scanalyzed . | . . Part Schematics Acquired . | . . Parts Damaged . | . . Bothacking | -11 -10 ------------ Run | Scr Mat Used RIF Installer . | . . Robots Hacked . | . . Non-combat . | . . Combat . | . . Robot Hacks Applied . | . . Relay Couplers Released . | . . Robots Rewired . | . . Allies Hacked . | . . Hacks Repelled . | . . Allies | -11 -10 -------- Run | Scr Mat Total Allies . | . . Largest Group . | . . Highest-Rated Group . | . . Highest-Rated Ally . | . . Total Orders . | . . Ally Attacks . | . . Total Damage . | . . Kills . | . . Allies Corrupted . | . . Allies Melted . | . . Intel | -11 -10 ------- Run | Scr Mat Robot Analysis Total . | . . Derelict Logs Recovered . | . . Drone Launches . | . . Drone Recoveries . | . . Exploration | -11 -10 ------------- Run | Scr Mat Turns Passed 400 | 122 278 Spaces Moved 301 | 96 205 Core 30 | 26 4 Treads . | . . Legs 75 | 70 5 Wheels . | . . Hover 196 | . 196 Flight . | . . Fastest Speed 50 | 50 56 Average Speed 110 | 101 115 Slowest Speed 250 | 120 250 Overloaded Moves . | . . Propulsion Burnouts . | . . Robots Hopped . | . . Cave-ins Triggered . | . . Exploration Rate (%) 26 | 8 45 Regions Visited 1 Branch Regions . Pre-discovered Areas . | . . Known Exits Taken . | . . Unknown Exits Taken 1 | 1 . Scrap Searched . | . . Spaces Dug . | . . Terrain Destroyed 42 | . 42 Melee . | . . Projectile . | . . AOE 42 | . 42 Terrain Rammed . | . . Walls Destroyed . | . . Machines Disabled . | . . Actions | -11 -10 --------- Run | Scr Mat Total 350 | 114 236 Wait . | . . Move 300 | 95 205 Hop . | . . Pick Up 15 | 7 8 Fast Attach 3 | . 3 Attach 9 | 5 4 Detach . | . . Swap 4 | . 4 Drop 4 | . 4 Fire 15 | 7 8 Melee . | . . Ram . | . . Kick . | . . Crush . | . . Escape Stasis . | . . Rewire . | . . Trap . | . . Miscellaneous . | . . Route ------- -11/Scrapyard -10/Materials (discovered 1 exit: [*Mat]) History --------- Turn | Location | Event 2 | -11/Scrapyard | Met Revision 17 58 | -11/Scrapyard | Discovered new exit (range 8) 123 | -11/Scrapyard | Entered Materials 326 | -10/Materials | Build established: Mutant 396 | -10/Materials | Core integrity fell below 50% 397 | -10/Materials | Discovered new exit (range 16) 399 | -10/Materials | Core integrity fell below 20% 401 | -10/Materials | Destroyed by S-10 Pest with Light Assault Rifle Last Messages --------------- 00351_ U-05 Engineer lays Concrete. 00352_ The unstable cave ceiling collapses. 00352_ U-05 Engineer lays Concrete. 00353_ The unstable cave ceiling collapses. 00353_ U-05 Engineer lays Concrete. 00358_ Grenade Launcher destroyed. 00365_ G-34 Mercenary destroyed. 00366_ Hover Unit destroyed. 00368_ Lgt. Ion Engine destroyed. 00369_ K-01 Serf collects debris. 00375_ W-16 Scout sends out distress signal. 00392_ Hover Unit destroyed. 00393_ Beam Cannon destroyed. 00393_ K-01 Serf collects debris. 00393_ Assault Rifle destroyed. 00394_ Lgt. Ion Engine destroyed. 00396_ Sensor Array destroyed. 00397_ EXIT=FOUND 00400_ Flight Unit destroyed. [Achievement: First Step to Greatness] Map ----- +----------------------------------------------------+ | !!! ######## # #??????????????????? | | #??????? # #??????????????????? | | # %= #????????# #??????????????????? | | ##/# #####????????# #??????????????????? | | = #???????????#######??????????????????? | | ###????????????????????????????????????? | | #??????????????????????????????????????? | | """% ##??????????????????????????????????????? | | """! #????????????? ?????????????????????????? | | """ ##############? #????????????????????????? | | # #? #????????????????????????? | | + !!! """??# #????????????????????????? | | """ # !!! """ ?# #????????????????????????? | | """ # ! !! """ ## #????????????????????????? | | "" # + #????????????????????????? | | ###/########## #????????????????????????? | | #?# ########## ###########??????????????? | | " #?# w ?????????????? | | T #?#%=####### s g ?????????????? | | " = ## #gg ?????????????? | | ##" gg ######???????????????? | | ##T # g#????????????????????? | | ##### ##/####" # sg #????????????????????? | | ????# ? ???# ! / s #????????????????????? | | ????# # ???# #### #????????????????????? | | ????# # "???# #??#k @ #????????????????????? | | ????/???# "???#[ #??# #????????????????????? | | ??? ????# "???# #??# #????????????????????? | | ?? ?????# ????######??# #????????????????????? | | ????????# ????????????# #????????????????????? | | ????????#?????????????# #????????????????????? | | ??????????????????????# #????????????????????? | | ??????????????????????# #????????????????????? | | ??????????????????????#+# +????????????????????? | | ????????????????????????? #????????????????????? | | ????????????????????????? #????????????????????? | | ????????????????????????? #????????????????????? | | ????????????????????????? #????????????????????? | | ????????????????????????? +????????????????????? | | ????????????????????????? #????????????????????? | | ????????????????????????? < ?????????????????????? | | ?????????????????????????????????????????????????? | | ?????????????????????????????????????????????????? | | ?????????????????????????????????????????????????? | | ?????????????????????????????????????????????????? | | ?????????????????????????????????????????????????? | | ?????????????????????????????????????????????????? | | ?????????????????????????????????????????????????? | | | | | +----------------------------------------------------+ Best States ------------- Heat Dissipation 35 Energy Generation 10 Energy Capacity 125 Matter Stores 300 Matter Capacity 300 Sight Range 16 Robot Scan Range 10 Terrain Scan Density 10 Evasion (%) 53 Item Schematics ----------------- None Robot Schematics ------------------ None Fabricated ------------ Nothing Alien Tech Used ----------------- None Achievements -------------- First Step to Greatness Uninvited Guest Challenges ------------ None Game ------ Seed QuantumWaveRigger Manual? 0 Play Time 00:17:39 Cumulative 0.5 hours Start 2021.12.13 @ 20:10:33 End 2021.12.13 @ 20:27:00 Sessions 1 Manual Loads 0 Difficulty Rogue Special Mode None Game No. 1 Rogue 1 Adventurer 0 Explorer 0 Win Type - Total 0 Types 0/0/0/0/0/0/0/0/0 Lore% 0 Gallery% 1 Achievement% 0 Wizard Run 0 Options --------- ASCII 1 Keyboard 0 Movement Mouse Keybinds 0 Fullscreen 1 Font 18/X11 Map View 76x50 Tactical HUD 1 Map Filters NONE Filters NONE Steam 0 RUN: f1d9182d-5024-4bc2-ab61-f6a222c2b34a